Cogmind - Beta 15 @@@ ROGUE MODE // 2025.05.23 @ 22:10:12 Player: Tel Result: Destroyed by G2-RPE(R) with Subdweller Laser Performance ------------- Evolutions (0) 0 Regions Visited (3) 600 Robots Destroyed (45) 225 Value Destroyed (851) 851 Prototype IDs (3) 60 Alien Tech Used (0) 0 Bonus (0) 0 TOTAL SCORE: 1736 Bonus ------- None Cogmind --------- Core Integrity 0/250 Matter 204/300 Energy 315/315 System Corruption 0% Temperature Cool (6) Movement Walking (130) Location -10/Subcaves Parts ------- > --- POWER (1) -------- Neutrino Core > --- PROPULSION (2) --- Makeshift Leg Myomer Leg > --- UTILITY (2) ------ Medium Storage Unit Subdweller Optics > --- WEAPON (2) ------- Grenade Launcher > --- INVENTORY (10) --- High-capacity Battery (250) High-capacity Matter Pod (200) Makeshift Thermal Plating Scrap Shield Sensor Drone Bay (20/20) Subdweller Beam Cannon Mining Claw Scrap Shield Fragment (48) Scrap Shield Fragment (47) Peak State ------------ > --- POWER ------------ Neutrino Core > --- PROPULSION ------- Makeshift Leg Myomer Leg > --- UTILITY ---------- Medium Storage Unit Subdweller Optics > --- WEAPON ----------- Subdweller Beam Cannon Bore Cannon > --- INVENTORY -------- High-capacity Battery High-capacity Matter Pod Scrap Shield Sensor Drone Bay Light Cannon Grenade Launcher Mining Claw Scrap Shield Fragment Scrap Shield Fragment [Rating: 29] Favorites ----------- Power Ion Engine Engine Ion Engine Power Core Light Nuclear Core Propulsion Wheel Leg Myomer Leg Wheel Wheel Utility Medium Storage Unit Device Subdweller Optics Storage Medium Storage Unit Processor Targeting Computer Protection Light Armor Plating Weapon Light Cannon Energy Gun Small Laser Energy Cannon Subdweller Beam Cannon Ballistic Gun Light Assault Rifle Ballistic Cannon Light Cannon Launcher Grenade Launcher Build | -11 -10 -10 -10 ------- Run | Yrd Mat Min Sub Slots Evolved . | . . . . Power . | . . . . Propulsion . | . . . . Utility . | . . . . Weapon . | . . . . Parts Attached 27 | 6 11 2 8 Power 4 | 1 1 1 1 Engine 2 | 1 1 . . Core 2 | . . 1 1 Reactor . | . . . . Propulsion 7 | 2 1 . 4 Treads . | . . . . Leg 3 | . . . 3 Wheel 4 | 2 1 . 1 Hover . | . . . . Flight . | . . . . Utility 7 | 1 4 1 1 Device 2 | . . 1 1 Storage 2 | 1 1 . . Processor 2 | . 2 . . Hackware . | . . . . Protection 1 | . 1 . . Artifact . | . . . . Weapon 9 | 2 5 . 2 Energy Gun 1 | 1 . . . Energy Cannon 1 | . . . 1 Ballistic Gun 1 | 1 . . . Ballistic Cannon 5 | . 4 . 1 Launcher 1 | . 1 . . Special Weapon . | . . . . Impact Weapon . | . . . . Slashing Weapon . | . . . . Piercing Weapon . | . . . . Special Melee Weapon . | . . . . Unidentified Prototypes 1 | . . 1 . Parts Lost 6 | . . . 6 Power 1 | . . . 1 Propulsion 3 | . . . 3 Utility 1 | . . . 1 Weapon 1 | . . . 1 Highest Loss Streak 3 | . . . 3 To Critical Strikes . | . . . . Average Backups 8 | 1 8 9 8 Power . | . . . . Propulsion 1 | . 1 1 . Utility 3 | . 2 4 4 Weapon 3 | . 4 4 3 Tool/Special . | . . . . Unused Backups 12 | . 2 2 8 Power . | . . . . Propulsion 1 | . 1 . . Utility 9 | . 1 2 6 Weapon 2 | . . . 2 Tool/Special . | . . . . Average Slot Usage (%) 95 | . 96 100 80 Engine 9 | . 14 4 . Core 4 | . . 9 10 Leg 1 | . . . 8 Wheel 25 | . 28 28 9 Storage 14 | . 14 14 14 Processor 5 | . 9 . . Protection 5 | . 1 14 4 Ballistic Cannon 22 | . 24 18 20 Launcher 4 | . 1 9 2 Peak Build Rating 29 | 6 9 15 29 Average Rating 9 | 3 7 9 17 On Entrance 5 | . 6 7 10 Naked Turns . | . . . . Heaviest Build 43 | 10 24 24 43 Greatest Support 45 | 26 26 26 45 Greatest Overweight (x) 3 | . . . 3 Average Overweight (x) . | . . . 1 Largest Inventory Capacity 10 | 8 10 10 10 Average Capacity 9 | 7 9 10 10 Most Carried 10 | 5 10 10 10 Average Carried 9 | . 8 9 9 Final Capacity 10 | 8 10 10 10 Final Carried 10 | . 9 10 10 Class Distribution -------------------- 92% | Mutant 7% | Scavenger-Mutant Dominant Class ---------------- Mutant | -10/Materials Mutant | -10/Mines Scavenger-Mutant | -10/Subcaves Resources | -11 -10 -10 -10 ----------- Run | Yrd Mat Min Sub Matter Collected 1342 | 158 627 359 198 Remotely . | . . . . Salvage Created 840 | . 569 89 182 Parts 71 | . 48 8 15 Haulers Intercepted 2 | . 2 . . Recyclers Shooed 2 | . 2 . . Parts Field Recycled . | . . . . Retrieved Matter . | . . . . Parts Self-Destructed 7 | . . . 7 Prevented . | . . . . Kills | -11 -10 -10 -10 ------- Run | Yrd Mat Min Sub Combat Hostiles Destroyed 27 | . 14 6 7 Cannons 16 | . 6 5 5 AOE 11 | . 8 1 2 Classes Destroyed 12 | . 7 3 2 Worker 5 | . 5 . . Builder 5 | . 5 . . Tunneler 1 | . . 1 . Hauler 2 | . 2 . . Recycler 2 | . 2 . . Turret 2 | . . . 2 Watcher 3 | . 3 . . Swarmer 11 | . 9 . 2 Grunt 7 | . 5 2 . Demolisher 2 | . . 2 . Subdweller 5 | . . . 5 Assembled 2 | . . 2 . Best Kill Streak 5 | . 5 3 3 Combat Bots Only 3 | . 3 2 3 Max Kills in Single Turn 4 | . 4 2 2 Gunslinging . | . . . . Exploded 3 | . 3 1 2 Melee . | . . . . Uniques/NPCs Destroyed . | . . . . Combat | -11 -10 -10 -10 -------- Run | Yrd Mat Min Sub Hostile Shots Fired 112 | . 37 14 61 Missed 41 | . 13 3 25 Hits 71 | . 24 11 36 Projectile 71 | . 24 11 36 AOE 3 | . . 2 1 Critical Strikes 3 | . 1 . 2 Damage Taken 1126 | . 288 199 639 Core 267 | . 73 48 146 Absorbed by Shields . | . . . . Regen/Repaired (Parts) 65 | . 65 . . Core Remaining (%) 100 | 100 . . . Volleys Fired 87 | . 54 10 23 Largest 2 | . 2 2 2 Hottest 128 | . 60 60 128 Shots Fired 152 | . 92 19 41 Gun 2 | . 2 . . Cannon 136 | . 81 18 37 Launcher 14 | . 9 1 4 Special . | . . . . Kinetic 136 | . 83 18 35 Thermal 2 | . . . 2 Explosive 14 | . 9 1 4 Electromagnetic . | . . . . Robot Hit Streak 8 | . 8 3 8 Robot Miss Streak 4 | . 4 3 3 Penetration Max . | . . . . Secondary Targets . | . . . . Shots Hit Robots 84 | . 51 8 25 Core Hits 63 | . 36 9 18 Critical Kills 1 | . . . 1 Critical Parts Destroyed 1 | . . . 1 Critical Strikes 7 | . 2 . 5 Destroy 5 | . . . 5 Blast 2 | . 2 . . Melee Attacks . | . . . . Impact . | . . . . Slashing . | . . . . Piercing . | . . . . Sneak Attacks . | . . . . Combat Hostiles . | . . . . Follow-up Attacks . | . . . . Damage Inflicted 2619 | . 1355 215 1049 Guns 18 | . 18 . . Cannons 1460 | . 868 177 415 Explosions 1141 | . 469 38 634 Melee . | . . . . Ramming . | . . . . Kinetic 1478 | . 886 177 415 Thermal . | . . . . Explosive 1141 | . 469 38 634 Electromagnetic . | . . . . Impact . | . . . . Slashing . | . . . . Piercing . | . . . . Highest Corruption . | . . . . Average Corruption . | . . . . Corruption Purged . | . . . . Corruption Blocked . | . . . . Overload Shots . | . . . . Overflow Damage 54 | . 42 . 12 Projectiles 9 | . 5 . 4 Explosions 45 | . 37 . 8 Melee . | . . . . Knockbacks 21 | . 14 . 7 Impact . | . . . . Kinetic 20 | . 13 . 7 Secondary 1 | . 1 . . Self-Inflicted Damage 123 | . 48 . 75 Shots 6 | . 2 . 4 Rammed . | . . . . Targets Rammed . | . . . . Kicked . | . . . . Crushed . | . . . . Highest Temperature 278 | . 36 123 278 Average Temperature 50 | . 12 51 130 Received Heat Transfer 559 | . 81 63 415 Siege Activations . | . . . . Martial Activations . | . . . . Shielding Activations . | . . . . Robots Disrupted . | . . . . Combat Hostiles . | . . . . Robots Corrupted . | . . . . Combat Hostiles . | . . . . Parts Fried . | . . . . Impact Corruptions . | . . . . Robots Melted . | . . . . Combat Hostiles . | . . . . Parts Melted . | . . . . Heat Transferred . | . . . . Parts Sabotaged . | . . . . Parts Stolen . | . . . . Parts Stripped . | . . . . Power Chain Reactions . | . . . . Alert | -11 -10 -10 -10 ------- Run | Yrd Mat Min Sub Maximum Alert Level 1 | . 1 . . Low Security (%) 90 | 100 84 100 . Level 1 9 | . 15 . . Level 2 . | . . . . Level 3 . | . . . . Level 4 . | . . . . Level 5 . | . . . . High Security . | . . . . Max Security . | . . . . Peak Influence 245 | . 245 57 . Initial 27 | . . 27 . Average 85 | . 132 9 . Influence Increases 799 | . 562 112 125 Destroy 0b10 Robot/C 440 | . 280 80 80 Destroy 0b10 Robot/NC 90 | . 85 5 . Destroy Leader 90 | . 70 20 . Trap Triggered on 0b10 10 | . 10 . . Successful Hack 47 | . 47 . . Disable Machine 15 | . 15 . . Destroy Structure 47 | . 40 7 . Lose Combat Pursuer 60 | . 15 . 45 Influence Decreases 799 | . 490 184 125 Entered New Map 45 | . . 45 . Time Decay 704 | . 490 139 75 Lost Part 50 | . . . 50 Squads Dispatched 2 | . 2 . . Investigation 2 | . 2 . . Extermination . | . . . . Reinforcement . | . . . . Assault . | . . . . Garrison . | . . . . Intercept . | . . . . Searches Triggered . | . . . . Construction Impeded . | . . . . Haulers Reinforced . | . . . . Active Scanning Responses . | . . . . Cargo Convoy Interrupts . | . . . . Stealth | -11 -10 -10 -10 --------- Run | Yrd Mat Min Sub Distress Signals 1 | . 1 . . Communications Jammed . | . . . . Distress Signals . | . . . . Times Spotted 44 | . 22 5 17 Peak Tracking Total 7 | . 4 2 7 Tactical Retreats 2 | . 1 . 1 Traps | -11 -10 -10 -10 ------- Run | Yrd Mat Min Sub Traps Triggered 1 | . 1 . . Indirectly . | . . . . Trap Hack Attempts . | . . . . Triggered . | . . . . Disarmed . | . . . . Reprogrammed 1 | . 1 . . Reused 1 | . 1 . . Traps Extracted . | . . . . Installed . | . . . . Triggered 1 | . 1 . . Machines | -11 -10 -10 -10 ---------- Run | Yrd Mat Min Sub Machines Disabled 1 | . 1 . . Max in Single Turn 1 | . 1 . . Machines Repaired . | . . . . Machines Dismantled . | . . . . Machines Sabotaged . | . . . . Overloaded Fab Kills . | . . . . Hacking | -11 -10 -10 -10 --------- Run | Yrd Mat Min Sub Machines Accessed 12 | . 11 1 . Terminals 8 | . 8 . . Fabricators . | . . . . Repair Stations 1 | . 1 . . Recycling Units 2 | . 2 . . Scanalyzers . | . . . . Garrison Access . | . . . . Total Hacks 31 | . 30 1 . Successful 18 | . 17 1 . Failed 13 | . 13 . . Catastrophic 3 | . 3 . . Database Lockouts . | . . . . Manual 13 | . 13 . . Terminals 23 | . 23 . . Fabricators . | . . . . Repair Stations 2 | . 2 . . Recycling Units 5 | . 5 . . Scanalyzers . | . . . . Garrison Access . | . . . . Terminal Hacks 10 | . 9 1 . Robot Analysis 2 | . 2 . . Prototype ID Bank 1 | . 1 . . Open Door 1 | . . 1 . Level Access Points 1 | . 1 . . Branch Access Points 1 | . 1 . . Scanalyzer Index 1 | . 1 . . Reprogram Traps 1 | . 1 . . Hauler Manifests 1 | . 1 . . Registered Components 1 | . 1 . . Fabricator Hacks . | . . . . Repair Station Hacks 2 | . 2 . . Scan Component 1 | . 1 . . Repair 1 | . 1 . . Recycling Unit Hacks 3 | . 3 . . Process 1 | . 1 . . Report Inventory 1 | . 1 . . Retrieve Matter 1 | . 1 . . Scanalyzer . | . . . . Garrison Access Hacks . | . . . . Unauthorized Hacks 3 | . 3 . . Terminals 3 | . 3 . . Botnet 3 | . 3 . . Fabricators . | . . . . Repair Stations . | . . . . Recycling Units . | . . . . Scanalyzers . | . . . . Garrison Access . | . . . . Data Cores Recovered . | . . . . Used . | . . . . Hacking Detections 11 | . 11 . . Full Trace Events 1 | . 1 . . Feedback Events . | . . . . Feedback Blocked . | . . . . Robot Schematics Acquired . | . . . . Robots Built . | . . . . Authchips . | . . . . Time . | . . . . Total Robot Build Rating . | . . . . Part Schematics Acquired . | . . . . Parts Built . | . . . . Authchips . | . . . . Time . | . . . . Total Part Build Rating . | . . . . Parts Repaired 1 | . 1 . . Time 26 | . 26 . . Parts Recycled . | . . . . Recycled Matter 264 | . 264 . . Retrieved Matter 264 | . 264 . . Retrieved Components . | . . . . Parts Scanalyzed . | . . . . Part Schematics Acquired . | . . . . Parts Damaged . | . . . . Bothacking | -11 -10 -10 -10 ------------ Run | Yrd Mat Min Sub Used RIF Installer . | . . . . Robots Hacked . | . . . . Non-combat . | . . . . Combat . | . . . . Robot Hacks Applied . | . . . . Relay Couplers Released . | . . . . Fabnet Peak Effective % . | . . . . Robots Rewired . | . . . . Allies Hacked . | . . . . Hacks Repelled . | . . . . Allies | -11 -10 -10 -10 -------- Run | Yrd Mat Min Sub Total Allies 3 | . . 3 . Largest Group 3 | . . 3 . Highest-Rated Group 40 | . . 40 . Highest-Rated Ally 16 | . . 16 . Total Orders . | . . . . Ally Attacks 2 | . . 2 . Total Damage 13 | . . 13 . Kills . | . . . . Allies Corrupted . | . . . . Allies Melted 1 | . . . 1 Intel | -11 -10 -10 -10 ------- Run | Yrd Mat Min Sub Active Infowar (turns) 368 | . 252 . 116 Optics 368 | . 252 . 116 Robot Analysis Total 2 | . 2 . . Derelict Logs Recovered 3 | . . 2 1 Drone Launches . | . . . . Drone Recoveries . | . . . . Exploration | -11 -10 -10 -10 ------------- Run | Yrd Mat Min Sub Turns Passed 2379 | 40 1297 750 292 Spaces Moved 2152 | 35 1192 779 146 Core 9 | 9 . . . Treads . | . . . . Legs 61 | . . . 61 Wheels 2082 | 26 1192 779 85 Hover . | . . . . Flight . | . . . . Fastest Speed 50 | 50 90 90 90 Average Speed 92 | 79 90 90 131 Slowest Speed 190 | 90 90 90 190 Overloaded Moves . | . . . . Propulsion Burnouts . | . . . . Robots Hopped . | . . . . Potential Cave-ins . | . . . . Cave-ins Triggered . | . . . . Exploration Rate (%) 50 | 4 98 90 11 Regions Visited 3 Branch Regions 2 Pre-discovered Areas 2 | . . 1 1 Known Exits Taken 1 | . 1 . . Unknown Exits Taken 2 | 1 . 1 . Scrap Searched 2 | . . 2 . Spaces Dug 6 | . 6 . . Terrain Destroyed 55 | . 43 7 5 Melee . | . . . . Projectile 2 | . . . 2 AOE 53 | . 43 7 3 Terrain Rammed . | . . . . Walls Destroyed . | . . . . Machines Disabled . | . . . . Actions | -11 -10 -10 -10 --------- Run | Yrd Mat Min Sub Total 2381 | 46 1324 807 204 Wait 52 | . 33 8 11 Move 2149 | 34 1191 778 146 Hop . | . . . . Pick Up 33 | 6 19 3 5 Fast Attach 7 | . 1 1 5 Attach 11 | 6 3 . 2 Detach . | . . . . Swap 22 | . 13 4 5 Drop 20 | . 10 3 7 Fire 87 | . 54 10 23 Melee . | . . . . Ram . | . . . . Kick . | . . . . Crush . | . . . . Escape Stasis . | . . . . Rewire . | . . . . Trap . | . . . . Miscellaneous . | . . . . Route ------- -11/Scrapyard -10/Materials (discovered 4 exits: *Mat x3 / *Min) -10/Mines (discovered 3 exits: *Mat x2 / [*Sub]) -10/Subcaves (discovered 2 exits: [*Mat] / [*Rec]) History --------- Turn | Location | Event 5 | -11/Scrapyard | Discovered new exit (range 15) 41 | -11/Scrapyard | Entered Materials 180 | -10/Materials | Discovered new exit (range 13) 219 | -10/Materials | Discovered new exit (range 11) 289 | -10/Materials | Discovered new exit (range 17) 317 | -10/Materials | Build established: Mutant 718 | -10/Materials | Identified exit to Mines 824 | -10/Materials | Identified exit to Materials 1317 | -10/Materials | Repaired Lgt. Cannon 1338 | -10/Materials | Entered Mines 1339 | -10/Mines | Assembled infested the area 1357 | -10/Mines | Assisted by bots powering up and referring to "LRC-V3" 1438 | -10/Mines | Discovered new exit (range 13) 1525 | -10/Mines | Found the Drone Emporium 1529 | -10/Mines | Found Prototype Device 1530 | -10/Mines | Identified Sensor Drone Bay 1600 | -10/Mines | Lost 3 allies 1689 | -10/Mines | Discovered exit to Materials (range 13) 1777 | -10/Mines | Learned location of Storage (-9) 1780 | -10/Mines | Discovered exit to Materials (range 8) 2088 | -10/Mines | Entered Subcaves 2088 | -10/Subcaves | Discovered new exit (range 13) 2115 | -10/Subcaves | Core integrity fell below 50% 2147 | -10/Subcaves | Lost 3 parts (1p2n) 2326 | -10/Subcaves | Discovered new exit (range 8) 2345 | -10/Subcaves | Learned location of Zion (-7) 2355 | -10/Subcaves | Ambushed by swarm of Subdwellers 2374 | -10/Subcaves | Core integrity fell below 20% 2380 | -10/Subcaves | Destroyed by G2-RPE(R) with Subdweller Laser Last Messages --------------- A mess of Twisted Machinery falls from the cavern ceiling. LV-06E(R) comes tumbling into view. 02360_ HV Slug penetrates R1-W6H(R). 02360_ R1-W6H(R) suffers critical hit (Destroy). 02360_ HV Slug penetrates Wall. 02362_ C1-N2N(R) emerges from the Twisted Machinery. 02363_ HV Slug penetrates R1-W6H(R). 02363_ R1-W6H(R) suffers critical hit (Destroy). 02370_ Destroyed Sub. Optics. 02370_ 6J-1HV(R) destroyed. 02373_ HV Slug penetrates LV-06E(R). 02373_ LV-06E(R) suffers critical hit (Destroy). 02373_ Destroyed Sub. Machine Gun. 02373_ LV-06E(R) knocked back. 02376_ F8-M1M(R) knocked back. 02376_ Bore Cannon destroyed. 02379_ C1-N2N(R) destroyed. 02379_ IR-14V(R) destroyed. Map ----- +----------------------------------------------------+ | ??????????????????## " #?????????# #????????? | | ???????????????????#""""" ##?????#### ####?????? | | ???????????????????## """ ###???#" "#?????? | | ????????????????????#"""" ##??# #?????? | | ????????????????????#"" ##?# #?????? | | ?????????????????####" ###" "#?????? | | ???????????????###"" "##" % % #?????? | | ??????????????##"" """##""" %%% #?????? | | ?????????????##"" " ##" ######<#####?????? | | ?????????????#" """ #? #????###?????????? | | ????????????## #####""" ##?? #???????????????? | | ???????????## ????#" #??? #???????????????? | | ????????#### #???# #???? #???????????????? | | ????????# #??# ##???##???????????????? | | ?????????# ### #????????????????????? | | ?????????## #????????????????????? | | ??????????### #????????????????????? | | ????????????# ==* ####????????????????????? | | ????????????### ### !########??????????????????? | | ????????##????# ???# ## # ###????????????????? | | ????????# ??## ?###"% #????????????????? | | ????????# ## ? "" < #????????????????? | | ?????????# ###" ##????????????????? | | ??????????# R R%= #?????????????????? | | ???????????# ##?????????????????? | | ???????????## ## ==R @ # #??????????????????? | | ???????????????## !%% #??????????????????? | | ????????????????## & #??????????????????? | | ?????????????????## ## #?????????????????? | | ??????????????????# ;##?##?????????????????? | | ??????????????????# ; ##?????????????????????? | | ??????????????????# ###??????????????????????? | | ??????????????????### R #???????????????????????? | | ????????????????????# #??????????????????????? | | ???????????????????? #?????????????????????? | | ??????????????????? #?????????????????????? | | ??????????????????### ##?????????????????????? | | ????????????????????# #??????????????????????? | | ????????????????????## #??????????????????????? | | ?????????????????????# #??????????????????????? | | ????????????????????? ??????????????????????? | | ????????????????????? ??????????????????????? | | ????????????????????? ?????????????????????? | | ????????????????????? ### ?????????????????????? | | ????????????????????? #??# ????????????????????? | | ????????????????????#####??? ????????????????????? | | ????????????????????????????? ???????????????????? | | ?????????????????????????????????????????????????? | | ?????????????????????????????????????????????????? | | ?????????????????????????????????????????????????? | +----------------------------------------------------+ Best States ------------- Heat Dissipation 25 Energy Generation 19 Energy Capacity 315 Matter Stores 300 Matter Capacity 300 Sight Range 21 Terrain Scan Density 10 Armor Coverage 150 Evasion (%) 55 Targeting Accuracy 5 Item Schematics ----------------- None Robot Schematics ------------------ None Fabricated ------------ Nothing Repaired ---------- Lgt. Cannon | 45% | -10/Materials Alien Tech Used ----------------- None Achievements -------------- None Challenges ------------ None Game ------ Seed CloakCobblerBrace Manual? 0 Play Time 00:21:55 Cumulative 3.9 hours Start 2025.05.23 @ 21:48:59 End 2025.05.23 @ 22:10:12 Sessions 1 Manual Loads 0 Difficulty Rogue Special Mode None Game No. 4 Rogue 4 Adventurer 0 Explorer 0 Win Type - Total 0 Types 0/0/0/0/0/0/0/0/0/0 Lore% 5 Gallery% 9 Achievement% 17 Wizard Run 0 Options --------- Layout 1 ASCII 0 Keyboard 0 Movement Mouse Keybinds 0 Fullscreen 1 Font 24/Smallcaps Map View 50x35 Zoom Use 0% Tactical HUD 1 Map Filters NONE Filters NONE Steam 0 RUN: 2cb09c66-5217-4880-8481-008cdef8a19d